Cogmind - Beta 16.1 *** ADVENTURER MODE // 2026.03.08 @ 05:45:06 Player: Ms. V3-11A Result: Destroyed by Y-54 Guardian with Flak Gun Performance ------------- Evolutions (0) 0 Regions Visited (3) 600 Robots Destroyed (25) 125 Value Destroyed (653) 653 Prototype IDs (16) 320 Alien Tech Used (0) 0 Bonus (-177) -177 TOTAL SCORE: 1521 Bonus ------- Friendly Fire -177 Cogmind --------- Core Integrity 0/250 Matter 292/300 Energy 247/250 System Corruption 7% Temperature Cool (44) Movement Rolling (125) Ox3 Location -7/Recycling Parts ------- > --- POWER (1) -------- Ion Engine > --- PROPULSION (2) --- Wheel Subdweller Monowheel > --- UTILITY (2) ------ Large Storage Unit Utility Shielding > --- WEAPON (2) ------- Beam Cannon Barrage Gun > --- INVENTORY (15) --- Subdweller Power Source Large Storage Unit High-capacity Matter Pod (200) Makeshift Terrain Scanner Scrap Shield Beam Cannon Advanced Beam Cannon Battle Rifle EMP Blaster 1B-0RG's Assimilator Peak State ------------ > --- POWER ------------ Ion Engine > --- PROPULSION ------- Light Treads Subdweller Monowheel > --- UTILITY ---------- Large Storage Unit Makeshift Light Armor Plating > --- WEAPON ----------- Advanced Beam Cannon Barrage Gun > --- INVENTORY -------- Subdweller Power Source Large Storage Unit High-capacity Matter Pod Makeshift Terrain Scanner Scrap Shield Beam Cannon Advanced Beam Cannon Battle Rifle EMP Blaster 1B-0RG's Assimilator [Rating: 23] Favorites ----------- Power Ion Engine Engine Ion Engine Propulsion Light Treads Treads Light Treads Leg Aluminum Leg Wheel Subdweller Monowheel Utility Large Storage Unit Storage Large Storage Unit Protection Makeshift Light Armor Plating Weapon Advanced Beam Cannon Energy Cannon Advanced Beam Cannon Ballistic Gun Light Assault Rifle Ballistic Cannon Light Cannon Build | -11 -10 -10 -7 ------- Run | Yrd Mat Sub Rec Slots Evolved . | . . . . Power . | . . . . Propulsion . | . . . . Utility . | . . . . Weapon . | . . . . Parts Attached 20 | . 8 12 . Power 2 | . . 2 . Engine 2 | . . 2 . Core . | . . . . Reactor . | . . . . Propulsion 6 | . 1 5 . Treads 3 | . . 3 . Leg 1 | . 1 . . Wheel 2 | . . 2 . Hover . | . . . . Flight . | . . . . Utility 4 | . 3 1 . Device . | . . . . Storage 2 | . 2 . . Processor . | . . . . Hackware . | . . . . Protection 2 | . 1 1 . Artifact . | . . . . Weapon 8 | . 4 4 . Energy Gun . | . . . . Energy Cannon 3 | . 2 1 . Ballistic Gun 2 | . 1 1 . Ballistic Cannon 3 | . 1 2 . Launcher . | . . . . Special Weapon . | . . . . Impact Weapon . | . . . . Slashing Weapon . | . . . . Piercing Weapon . | . . . . Special Melee Weapon . | . . . . Unidentified Prototypes 1 | . 1 . . Parts Lost 7 | . . 7 . Power 1 | . . 1 . Propulsion 3 | . . 3 . Utility 1 | . . 1 . Weapon 2 | . . 2 . Highest Loss Streak 3 | . . 3 . To Critical Strikes . | . . . . Average Backups 11 | 5 9 12 10 Power 1 | 1 1 1 1 Propulsion 1 | 3 3 . . Utility 3 | . 1 4 4 Weapon 4 | 1 3 5 4 Tool/Special . | . . . . Unused Backups 14 | . 1 3 10 Power 2 | . 1 . 1 Propulsion 1 | . . 1 . Utility 5 | . . 1 4 Weapon 5 | . . 1 4 Tool/Special 1 | . . . 1 Average Slot Usage (%) 94 | . 87 97 100 Engine 13 | . 14 13 14 Treads 14 | . . 23 . Leg 10 | . 28 . . Wheel 2 | . . 4 28 Storage 14 | . 14 14 14 Protection 9 | . 2 13 14 Energy Cannon 9 | . 3 13 14 Ballistic Gun 9 | . 17 4 14 Ballistic Cannon 8 | . 6 9 . Peak Build Rating 23 | 6 10 23 18 Average Rating 12 | 6 7 15 18 On Entrance 10 | 6 6 10 18 Avg Prop Armor Cover (%) 6 | . . 6 4 Naked Turns . | . . . . Heaviest Build 39 | 12 39 36 32 Greatest Support 40 | 20 20 40 10 Greatest Overweight (x) 9 | . 1 9 3 Average Overweight (x) . | . . . 3 Largest Inventory Capacity 15 | 8 15 15 15 Average Capacity 13 | 8 11 15 15 Most Carried 15 | 5 14 15 15 Average Carried 12 | 4 9 14 15 Final Capacity 15 | 8 15 15 15 Final Carried 15 | 4 13 15 15 Class Distribution -------------------- 100% | Mutant Dominant Class ---------------- Mutant | -10/Materials Mutant | -10/Subcaves Mutant | -7/Recycling Resources | -11 -10 -10 -7 ----------- Run | Yrd Mat Sub Rec Matter Collected 1128 | 200 292 576 60 Remotely . | . . . . Salvage Created 816 | . 139 677 . Parts 44 | . 10 34 . Haulers Intercepted 1 | . 1 . . Recyclers Shooed . | . . . . Parts Field Recycled . | . . . . Retrieved Matter . | . . . . Parts Self-Destructed 13 | . . 13 . Prevented . | . . . . Parts Restored . | . . . . Kills | -11 -10 -10 -7 ------- Run | Yrd Mat Sub Rec Combat Hostiles Destroyed 20 | . 2 18 . Guns 5 | . 2 3 . Cannons 15 | . . 15 . Classes Destroyed 8 | . 2 6 . Hauler 1 | . 1 . . Turret 2 | . . 2 . Swarmer 7 | . . 7 . Grunt 2 | . 2 . . Artisan 1 | . . 1 . Cobbler 1 | . . 1 . Subdweller 11 | . . 11 . Zionite 2 | . . 2 . Best Kill Streak 6 | . 2 6 . Combat Bots Only 4 | . 2 4 . Max Kills in Single Turn 1 | . 1 1 . Gunslinging . | . . . . Exploded . | . . . . Melee . | . . . . Uniques/NPCs Destroyed . | . . . . Combat | -11 -10 -10 -7 -------- Run | Yrd Mat Sub Rec Hostile Shots Fired 172 | . 17 146 9 Missed 61 | . 7 49 5 Hits 111 | . 10 97 4 Projectile 111 | . 10 97 4 AOE 1 | . . 1 . Critical Strikes 2 | . . 2 . Damage Taken 1364 | . 100 1240 24 Core 250 | . 8 238 4 Absorbed by Shields . | . . . . Redirected to Shielding 5 | . . 5 . Ignored by Resistances 365 | . 30 327 8 Core Remaining (%) 100 | 100 . . . Volleys Fired 98 | . 15 82 1 Largest 2 | . 2 2 2 Hottest 101 | . 40 101 88 Shots Fired 195 | . 30 162 3 Gun 59 | . 30 27 2 Cannon 136 | . . 135 1 Launcher . | . . . . Special . | . . . . Kinetic 113 | . 30 81 2 Thermal 82 | . . 81 1 Explosive . | . . . . Electromagnetic . | . . . . Robot Hit Streak 23 | . 23 18 8 Robot Miss Streak 3 | . 1 3 1 Penetration Max . | . . . . Secondary Targets 1 | . 1 . . Max Gunslinging Chain 1 | . 1 . . Shots Hit Robots 137 | . 29 106 2 Core Hits 47 | . 9 38 . Critical Kills . | . . . . Critical Parts Destroyed . | . . . . Critical Strikes . | . . . . Melee Attacks . | . . . . Impact . | . . . . Slashing . | . . . . Piercing . | . . . . Sneak Attacks . | . . . . Combat Hostiles . | . . . . Follow-up Attacks . | . . . . Damage Inflicted 2431 | . 246 2152 33 Guns 588 | . 246 309 33 Cannons 1843 | . . 1843 . Explosions . | . . . . Melee . | . . . . Ramming . | . . . . Kinetic 1176 | . 246 897 33 Thermal 1255 | . . 1255 . Explosive . | . . . . Electromagnetic . | . . . . Impact . | . . . . Slashing . | . . . . Piercing . | . . . . Highest Corruption 7 | . 7 7 7 Average Corruption 5 | . 3 7 7 Corruption Purged . | . . . . Corruption Blocked . | . . . . Effects 75 | . 12 62 1 Message Errors 12 | . 1 11 . Matter Fused 21 | . 3 18 . Heat Flow Errors 9 | . 1 8 . Energy Discharges 12 | . 3 9 . Parts Rejected 2 | . . 2 . Data Loss (minor) 6 | . 2 4 . Data Loss (major) 4 | . . 4 . Misfires 5 | . . 4 1 Alerts 2 | . 2 . . Weapon Failures 2 | . . 2 . Overload Shots . | . . . . Overflow Damage 7 | . . 7 . Projectiles 7 | . . 7 . Explosions . | . . . . Melee . | . . . . Knockbacks 3 | . . 3 . Impact . | . . . . Kinetic 3 | . . 3 . Secondary . | . . . . Self-Inflicted Damage . | . . . . Shots . | . . . . Rammed . | . . . . Targets Rammed . | . . . . Kicked . | . . . . Crushed . | . . . . Highest Temperature 273 | . 263 273 32 Average Temperature 62 | . 74 60 20 Received Heat Transfer 402 | . 72 318 12 Effects 2 | . 1 1 . Energy Bleed 2 | . 1 1 . Siege Activations . | . . . . Martial Activations . | . . . . Shielding Activations . | . . . . Robots Disrupted . | . . . . Combat Hostiles . | . . . . Robots Corrupted . | . . . . Combat Hostiles . | . . . . Parts Fried . | . . . . Impact Corruptions . | . . . . Robots Melted . | . . . . Combat Hostiles . | . . . . Parts Melted 5 | . . 5 . Heat Transferred 2220 | . . 2220 . Parts Sabotaged . | . . . . Parts Stolen . | . . . . Parts Stripped . | . . . . Power Chain Reactions . | . . . . Alert | -11 -10 -10 -7 ------- Run | Yrd Mat Sub Rec Maximum Alert Level . | . . . . Low Security (%) 100 | 100 100 . 100 Level 1 . | . . . . Level 2 . | . . . . Level 3 . | . . . . Level 4 . | . . . . Level 5 . | . . . . High Security . | . . . . Max Security . | . . . . Peak Influence 40 | . 40 . . Initial . | . . . . Average 2 | . 2 . . Influence Increases 313 | . 78 235 . Destroy 0b10 Robot/C 220 | . 40 180 . Destroy 0b10 Robot/NC 5 | . 5 . . Destroy Leader 22 | . 12 10 . Successful Hack 21 | . 21 . . Lose Combat Pursuer 45 | . . 45 . Influence Decreases 313 | . 78 235 . Time Decay 303 | . 78 225 . Lost Part 10 | . . 10 . Squads Dispatched 1 | . 1 . . Investigation 1 | . 1 . . Extermination . | . . . . Reinforcement . | . . . . Assault . | . . . . Garrison . | . . . . Intercept . | . . . . Searches Triggered . | . . . . Construction Impeded . | . . . . Haulers Reinforced . | . . . . Active Scanning Responses . | . . . . Cargo Convoy Interrupts . | . . . . Stealth | -11 -10 -10 -7 --------- Run | Yrd Mat Sub Rec Distress Signals . | . . . . Communications Jammed . | . . . . Distress Signals . | . . . . Times Spotted 27 | . 6 20 1 Peak Tracking Total 6 | . 2 6 1 Tactical Retreats 2 | . . 2 . Traps | -11 -10 -10 -7 ------- Run | Yrd Mat Sub Rec Traps Triggered 7 | . 3 4 . Indirectly . | . . . . Trap Hack Attempts . | . . . . Triggered . | . . . . Disarmed . | . . . . Reprogrammed . | . . . . Reused . | . . . . Traps Extracted . | . . . . Installed . | . . . . Triggered . | . . . . Machines | -11 -10 -10 -7 ---------- Run | Yrd Mat Sub Rec Machines Disabled 2 | . . 2 . Max in Single Turn 1 | . . 1 . Machines Repaired . | . . . . Machines Dismantled . | . . . . Machines Sabotaged . | . . . . Overloaded Fab Kills . | . . . . Hacking | -11 -10 -10 -7 --------- Run | Yrd Mat Sub Rec Machines Accessed 9 | . 8 1 . Terminals 8 | . 8 . . Fabricators . | . . . . Repair Stations . | . . . . Recycling Units . | . . . . Scanalyzers . | . . . . Garrison Access . | . . . . Total Hacks 31 | . 22 9 . Successful 24 | . 15 9 . Failed 7 | . 7 . . Catastrophic . | . . . . Database Lockouts . | . . . . Manual 14 | . 14 . . Terminals 22 | . 22 . . Fabricators . | . . . . Repair Stations . | . . . . Recycling Units . | . . . . Scanalyzers . | . . . . Garrison Access . | . . . . Terminal Hacks 20 | . 11 9 . Record 8 | . . 8 . Part Schematic 1 | . 1 . . Robot Analysis 2 | . 2 . . Prototype ID Bank 1 | . 1 . . Terminal Index 1 | . 1 . . Alert Level 1 | . 1 . . Hauler Manifests 2 | . 2 . . Registered Components 1 | . 1 . . Zone Layout 2 | . 2 . . Proto ID Catalog 1 | . . 1 . Fabricator Hacks . | . . . . Repair Station Hacks . | . . . . Recycling Unit Hacks . | . . . . Scanalyzer . | . . . . Garrison Access Hacks . | . . . . Unauthorized Hacks 4 | . 4 . . Terminals 4 | . 4 . . Botnet 4 | . 4 . . Fabricators . | . . . . Repair Stations . | . . . . Recycling Units . | . . . . Scanalyzers . | . . . . Garrison Access . | . . . . Data Cores Recovered . | . . . . Used . | . . . . Hacking Detections 6 | . 6 . . Full Trace Events . | . . . . Feedback Events . | . . . . Feedback Blocked . | . . . . Robot Schematics Acquired . | . . . . Robots Built . | . . . . Authchips . | . . . . Time . | . . . . Total Robot Build Rating . | . . . . Part Schematics Acquired 1 | . 1 . . Parts Built . | . . . . Authchips . | . . . . Time . | . . . . Total Part Build Rating . | . . . . Part Studies Acquired . | . . . . Parts Repaired . | . . . . Time . | . . . . Parts Recycled . | . . . . Recycled Matter . | . . . . Retrieved Matter . | . . . . Retrieved Components . | . . . . Parts Scanalyzed . | . . . . Part Schematics Acquired . | . . . . Parts Damaged . | . . . . Bothacking | -11 -10 -10 -7 ------------ Run | Yrd Mat Sub Rec Used RIF Installer . | . . . . Robots Hacked . | . . . . Non-combat . | . . . . Combat . | . . . . Robot Hacks Applied . | . . . . Relay Couplers Released . | . . . . Fabnet Peak Effective % . | . . . . Robots Rewired . | . . . . Allies Hacked . | . . . . Hacks Repelled . | . . . . Allies | -11 -10 -10 -7 -------- Run | Yrd Mat Sub Rec Total Allies . | . . . . Largest Group . | . . . . Highest-Rated Group . | . . . . Highest-Rated Ally . | . . . . Total Orders . | . . . . Ally Attacks . | . . . . Total Damage . | . . . . Kills . | . . . . Allies Corrupted . | . . . . Allies Melted . | . . . . Intel | -11 -10 -10 -7 ------- Run | Yrd Mat Sub Rec Active Infowar (turns) . | . . . . Robot Analysis Total 2 | . 2 . . Derelict Logs Recovered . | . . . . Drone Launches . | . . . . Drone Recoveries . | . . . . Exploration | -11 -10 -10 -7 ------------- Run | Yrd Mat Sub Rec Turns Passed 3236 | 2 1243 1972 19 Spaces Moved 1672 | 1 630 1027 14 Core 11 | . . 11 . Treads 850 | . . 850 . Legs 631 | 1 630 . . Wheels 180 | . . 166 14 Hover . | . . . . Flight . | . . . . Fastest Speed 110 | 120 120 110 125 Average Speed 154 | 120 139 164 125 Slowest Speed 500 | 120 190 500 125 Overloaded Moves . | . . . . Propulsion Burnouts . | . . . . Robots Hopped . | . . . . Potential Cave-ins . | . . . . Cave-ins Triggered . | . . . . Exploration Rate (%) 34 | 2 82 49 4 Regions Visited 3 Branch Regions 2 Pre-discovered Areas 1 | . . 1 . Known Exits Taken . | . . . . Unknown Exits Taken 3 | 1 1 1 . Scrap Searched 3 | . . 3 . Spaces Dug . | . . . . Terrain Destroyed . | . . . . Melee . | . . . . Projectile . | . . . . AOE . | . . . . Terrain Rammed . | . . . . Walls Destroyed . | . . . . Machines Disabled . | . . . . Actions | -11 -10 -10 -7 --------- Run | Yrd Mat Sub Rec Total 2141 | 2 971 1153 15 Wait 311 | . 301 10 . Move 1669 | . 629 1026 14 Hop . | . . . . Pick Up 20 | . 10 10 . Fast Attach 12 | . 7 5 . Attach 8 | . . 8 . Detach . | . . . . Swap 3 | . 1 2 . Drop 20 | 2 8 10 . Fire 98 | . 15 82 1 Melee . | . . . . Ram . | . . . . Kick . | . . . . Crush . | . . . . Escape Stasis . | . . . . Rewire . | . . . . Trap . | . . . . Miscellaneous . | . . . . Route ------- -11/Scrapyard -10/Materials (discovered 4 exits: [*Mat x2] / [*Min] / *Sub) -10/Subcaves -7/Recycling History --------- Turn | Location | Event 3 | -11/Scrapyard | Discovered new exit (range 0) 3 | -11/Scrapyard | Entered Materials 160 | -10/Materials | Discovered new exit (range 10) 292 | -10/Materials | Discovered new exit (range 4) 305 | -10/Materials | Build established: Mutant 419 | -10/Materials | Discovered new exit (range 15) 603 | -10/Materials | Derelicts attacked the area 641 | -10/Materials | Discovered new exit (range 15) 1246 | -10/Materials | Entered Subcaves 1291 | -10/Subcaves | A swath of the cavern ceiling suddenly collapsed 1355 | -10/Subcaves | Learned location of Zion (-7) 1355 | -10/Subcaves | Met a Zionite searching for "candidates" 1863 | -10/Subcaves | Ambushed by Subdweller buried in earth 1869 | -10/Subcaves | Core integrity fell below 50% 2443 | -10/Subcaves | Shifting Twisted Machinery released Battle Rifle 2479 | -10/Subcaves | Shifting Twisted Machinery released Sub. Machine Gun 2698 | -10/Subcaves | Discovered new exit (range 16) 2782 | -10/Subcaves | Visited 4L-MR0's lab 2794 | -10/Subcaves | Found Prototype Special Melee Weapon 3087 | -10/Subcaves | Core integrity fell below 20% 3135 | -10/Subcaves | Lost 3 parts (1n1u1w) 3218 | -10/Subcaves | Entered Recycling 3237 | -7/Recycling | Destroyed by Y-54 Guardian with Flak Gun Last Messages --------------- 03098_ Destroyed Scrap Shield. 03104_ Adv. Beam Cannon destroyed. 03104_ 94-8MJ(R) destroyed. 03118_ System corrupted: Matter fused (-8). 03147_ System corrupted: Matter fused (-9). 03148_ Subatomizers dissect the Lgt. Ion Engine. 03151_ Acquired 12 matter. 03160_ Subatomizers dissect the Utility Shielding. 03161_ Acquired Wheel. 03163_ Acquired Utility Shielding. 03168_ Acquired Beam Cannon. 03169_ Connecting with 4L-MR0's Prototype Logs... 03188_ #IPWPIVOKX>JV KJC>1MVACOINLP>NHXUO320FDS 03212_ System corrupted: Energy discharge (-55). LOCATION=UNKNOWN GOAL=ESCAPE 03225_ Acquired 60 matter. 03235_ System corrupted: FCS attempts to trigger Barrage Gun. 03235_ System corrupted: Barrage Gun misfires. 03235_ Y-54 Guardian springs to life. Map ----- +----------------------------------------------------+ | ?????????????????????????????????????????????????? | | ?????????????????????????????????????????????????? | | ?????????????????????????????????????????????????? | | ?????????????????????????????????????????????????? | | ?????????????????????????????????????????????????? | | ?????????????????????????????????????????????????? | | ?????????????????????????????????????????????????? | | ?????????????????????????????????????????????????? | | ?????????????????????????????????????????????????? | | ?????????????????????????????????????????????????? | | ?????????????????????????????????????????????????? | | ?????????????????????????????????????????????????? | | ?????????????????????????????????????????????????? | | ?????????????????????????????????????????????????? | | ?????????????????????????????????????????????????? | | ?????????????????????????????????????????????????? | | ?????????????????????????????????????????????????? | | ?????????????????????????????????????????????????? | | ?????????????????????????????????????????????????? | | ?????????????????????????????????????????????????? | | ?????????????????????????????????????????????????? | | ?????????????????????????????????????????????????? | | ?????????????????????????##########??????????????? | | ?????????????????????????#"""##%%%#??????????????? | | ??????????????#!! ##"Y"###"Y"##%%%####???????????? | | ?????????? @ #???????????? | | ?????????? #???????????? | | ?????????? Y #???????????? | | ???????????################## ########???????????? | | ????????????????????????????###??????????????????? | | ?????????????????????????????????????????????????? | | ?????????????????????????????????????????????????? | | ?????????????????????????????????????????????????? | | ?????????????????????????????????????????????????? | | | | | | | | | | | | | | | | | | | | | | | | | | | | | | | | | +----------------------------------------------------+ Best States ------------- Heat Dissipation 25 Energy Generation 15 Energy Capacity 250 Matter Stores 300 Matter Capacity 300 Sight Range 16 Terrain Scan Density 10 Armor Coverage 100 Resistance: KI 20 Resistance: TH 20 Resistance: EX 20 Resistance: EM 20 Resistance: I 20 Resistance: S 20 Resistance: P 20 Utility Shielding 33 Evasion (%) 55 Recoil Reduction 2 Offensive Hacking 10 Item Schematics ----------------- Hcp. Storage Unit | -10/Materials | Hacked Robot Schematics ------------------ None Fabricated ------------ Nothing Repaired ---------- Nothing Studied --------- None Alien Tech Used ----------------- None Achievements -------------- None Challenges ------------ None Game ------ Seed BarrageRapidBoomstick Manual? 0 Play Time 00:18:21 Cumulative 465.4 hours Start 2026.03.08 @ 05:21:15 End 2026.03.08 @ 05:45:06 Sessions 1 Manual Loads 0 Difficulty Adventurer Special Mode None Game No. 343 Rogue 63 Adventurer 254 Explorer 26 Win Type - Total 2 Types 2/0/0/0/0/0/0/0/0/0 Lore% 83 Gallery% 70 Achievement% 50 Wizard Run 0 Options --------- Layout 2 ASCII 0 Keyboard 0 Movement Mouse Keybinds 0 Fullscreen 0 Font 16/Cog Map View 64x51 Zoom Use 0% Tactical HUD 1 Map Filters NONE Filters BRIGHTNESS(115)|SATURATION(100)|LOW_CONTRAST(0,16,30) Steam 1 RUN: feeef2f9-a284-463c-890e-bae2fb0bbfba